[Event "Titled Tuesday Blitz November 08 Early 2022"]
[White "Dubov, Daniil"]
[Black "Hernandez Gonzalez, William"]
[WhiteFideId "24126055"]
[BlackFideId "3509915"]
[WhiteElo "2961"]
[BlackElo "2620"]
[Result "1-0"]
[Round "04"]
[TimeControl "180+1"]
[Date "2022.11.09"]
[WhiteClock "0:00:08"]
[BlackClock "0:00:03"]

1. e4 {[%clk 0:03:00]}  c5 {[%clk 0:02:59]} 2. Nf3 {[%clk 0:03:00]}  d6 {[%clk 0:02:59]} 3. d4 {[%clk 0:03:01]}  cxd4 {[%clk 0:03:00]} 4. Nxd4 {[%clk 0:03:02]}  Nf6 {[%clk 0:03:00]} 5. Nc3 {[%clk 0:03:02]}  g6 {[%clk 0:03:01]} 6. Bc4 {[%clk 0:03:02]}  a6 {[%clk 0:03:00]} 7. O-O {[%clk 0:03:02]}  Bg7 {[%clk 0:03:00]} 8. Re1 {[%clk 0:03:02]}  O-O {[%clk 0:03:00]} 9. h3 {[%clk 0:03:01]}  b5 {[%clk 0:03:00]} 10. Bd5 {[%clk 0:02:57]}  Nxd5 {[%clk 0:02:58]} 11. exd5 {[%clk 0:02:53]}  Bb7 {[%clk 0:02:58]} 12. Bg5 {[%clk 0:02:53]}  Re8 {[%clk 0:02:57]} 13. a3 {[%clk 0:02:43]}  Nd7 {[%clk 0:02:57]} 14. Na2 {[%clk 0:02:23]}  Nb6 {[%clk 0:02:30]} 15. Nb4 {[%clk 0:02:10]}  Qd7 {[%clk 0:01:47]} 16. Ndc6 {[%clk 0:02:07]}  Bf8 {[%clk 0:01:12]} 17. Qd4 {[%clk 0:02:00]}  Nxd5 {[%clk 0:00:59]} 18. Qxd5 {[%clk 0:01:36]}  e6 {[%clk 0:00:58]} 19. Qf3 {[%clk 0:00:37]}  Rac8 {[%clk 0:00:53]} 20. Nd5 {[%clk 0:00:32]}  exd5 {[%clk 0:00:38]} 21. Nd4 {[%clk 0:00:32]}  Re4 {[%clk 0:00:32]} 22. Bf6 {[%clk 0:00:31]}  Rce8 {[%clk 0:00:29]} 23. Red1 {[%clk 0:00:30]}  Bg7 {[%clk 0:00:27]} 24. Bxg7 {[%clk 0:00:28]}  Kxg7 {[%clk 0:00:27]} 25. Rd3 {[%clk 0:00:28]}  Qe7 {[%clk 0:00:25]} 26. Rad1 {[%clk 0:00:25]}  Qf6 {[%clk 0:00:24]} 27. Qxf6+ {[%clk 0:00:22]}  Kxf6 {[%clk 0:00:25]} 28. Kf1 {[%clk 0:00:20]}  h5 {[%clk 0:00:25]} 29. f3 {[%clk 0:00:19]}  Re3 {[%clk 0:00:24]} 30. Rxe3 {[%clk 0:00:19]}  Rxe3 {[%clk 0:00:25]} 31. Kf2 {[%clk 0:00:19]}  Re5 {[%clk 0:00:25]} 32. h4 {[%clk 0:00:20]}  Re7 {[%clk 0:00:23]} 33. Rd3 {[%clk 0:00:19]}  Kg7 {[%clk 0:00:20]} 34. Rc3 {[%clk 0:00:19]}  Kf6 {[%clk 0:00:20]} 35. Rd3 {[%clk 0:00:16]}  Kg7 {[%clk 0:00:20]} 36. a4 {[%clk 0:00:16]}  bxa4 {[%clk 0:00:18]} 37. Ra3 {[%clk 0:00:17]}  Bc8 {[%clk 0:00:16]} 38. Rxa4 {[%clk 0:00:16]}  Rb7 {[%clk 0:00:16]} 39. b3 {[%clk 0:00:15]}  Rb6 {[%clk 0:00:16]} 40. Ra5 {[%clk 0:00:14]}  Be6 {[%clk 0:00:16]} 41. Ke3 {[%clk 0:00:13]}  Kf6 {[%clk 0:00:16]} 42. Ra1 {[%clk 0:00:13]}  Ke5 {[%clk 0:00:16]} 43. Re1 {[%clk 0:00:13]}  Kf6 {[%clk 0:00:16]} 44. Kf4 {[%clk 0:00:11]}  Bd7 {[%clk 0:00:16]} 45. g4 {[%clk 0:00:10]}  a5 {[%clk 0:00:16]} 46. g5+ {[%clk 0:00:10]}  Kg7 {[%clk 0:00:16]} 47. Re7 {[%clk 0:00:11]}  Bc8 {[%clk 0:00:14]} 48. Ra7 {[%clk 0:00:08]}  Ra6 {[%clk 0:00:06]} 49. Rc7 {[%clk 0:00:08]}  Bh3 {[%clk 0:00:05]} 50. Rc6 {[%clk 0:00:06]}  Ra7 {[%clk 0:00:03]} 51. Rxd6 {[%clk 0:00:06]}  a4 {[%clk 0:00:04]} 52. bxa4 {[%clk 0:00:06]}  Rxa4 {[%clk 0:00:05]} 53. Ke5 {[%clk 0:00:07]}  Ra3 {[%clk 0:00:04]} 54. Rxd5 {[%clk 0:00:05]}  Bg2 {[%clk 0:00:04]} 55. Rb5 {[%clk 0:00:04]}  Bxf3 {[%clk 0:00:04]} 56. Rb3 {[%clk 0:00:04]}  Rxb3 {[%clk 0:00:04]} 57. cxb3 {[%clk 0:00:05]}  Bb7 {[%clk 0:00:04]} 58. b4 {[%clk 0:00:05]}  Kf8 {[%clk 0:00:05]} 59. Kf6 {[%clk 0:00:05]}  Ke8 {[%clk 0:00:05]} 60. Nb5 {[%clk 0:00:05]}  Bd5 {[%clk 0:00:04]} 61. Nd6+ {[%clk 0:00:05]}  Kf8 {[%clk 0:00:04]} 62. b5 {[%clk 0:00:05]}  Ba8 {[%clk 0:00:03]} 63. b6 {[%clk 0:00:06]}  Bd5 {[%clk 0:00:03]} 64. Nxf7 {[%clk 0:00:06]}  Bb7 {[%clk 0:00:03]} 65. Ne5 {[%clk 0:00:06]}  Ke8 {[%clk 0:00:03]} 66. Nxg6 {[%clk 0:00:07]}  Kd7 {[%clk 0:00:04]} 67. Ne5+ {[%clk 0:00:07]}  Kd6 {[%clk 0:00:03]} 68. g6 {[%clk 0:00:08]}  Bd5 {[%clk 0:00:03]} 69. g7 {[%clk 0:00:09]}  Kc5 {[%clk 0:00:03]} 70. Nf7 {[%clk 0:00:08]} 1-0


[Site "https://www.chess.com"]

[Event "Titled Tuesday Blitz November 08 Early 2022"]
[White "Farmani Anosheh, Armin"]
[Black "Derjabin, Ilja"]
[WhiteFideId "24613240"]
[BlackFideId "14104768"]
[WhiteElo "2289"]
[BlackElo "2312"]
[Result "1-0"]
[Round "04"]
[TimeControl "180+1"]
[Date "2022.11.09"]
[WhiteClock "0:00:21"]
[BlackClock "0:00:04"]

1. e4 {[%clk 0:03:00]}  c5 {[%clk 0:02:59]} 2. Nf3 {[%clk 0:03:01]}  d6 {[%clk 0:03:00]} 3. Bb5+ {[%clk 0:03:00]}  Nd7 {[%clk 0:02:55]} 4. d4 {[%clk 0:02:59]}  a6 {[%clk 0:02:54]} 5. Bxd7+ {[%clk 0:02:49]}  Bxd7 {[%clk 0:02:54]} 6. dxc5 {[%clk 0:02:43]}  dxc5 {[%clk 0:02:53]} 7. Ne5 {[%clk 0:02:32]}  Be6 {[%clk 0:02:50]} 8. Qxd8+ {[%clk 0:02:31]}  Rxd8 {[%clk 0:02:49]} 9. Be3 {[%clk 0:02:31]}  g6 {[%clk 0:02:39]} 10. Nc3 {[%clk 0:02:25]}  Bg7 {[%clk 0:02:38]} 11. Nd3 {[%clk 0:02:26]}  b6 {[%clk 0:02:26]} 12. a4 {[%clk 0:02:18]}  Bxc3+ {[%clk 0:02:14]} 13. bxc3 {[%clk 0:02:18]}  f6 {[%clk 0:02:14]} 14. a5 {[%clk 0:02:14]}  b5 {[%clk 0:01:52]} 15. Nxc5 {[%clk 0:02:14]}  Bc8 {[%clk 0:01:52]} 16. Rb1 {[%clk 0:01:34]}  e5 {[%clk 0:01:37]} 17. c4 {[%clk 0:01:33]}  bxc4 {[%clk 0:01:37]} 18. Rb4 {[%clk 0:01:32]}  Ne7 {[%clk 0:01:35]} 19. Rxc4 {[%clk 0:01:32]}  Nc6 {[%clk 0:01:24]} 20. Nxa6 {[%clk 0:01:00]}  Nxa5 {[%clk 0:01:22]} 21. Rc5 {[%clk 0:00:53]}  Nb7 {[%clk 0:01:11]} 22. Rc6 {[%clk 0:00:45]}  Nd6 {[%clk 0:01:10]} 23. f3 {[%clk 0:00:43]}  Bb7 {[%clk 0:01:07]} 24. Nc7+ {[%clk 0:00:38]}  Kd7 {[%clk 0:01:07]} 25. Rc3 {[%clk 0:00:38]}  Rc8 {[%clk 0:01:04]} 26. Bb6 {[%clk 0:00:38]}  Bxe4 {[%clk 0:00:41]} 27. fxe4 {[%clk 0:00:37]}  Nxe4 {[%clk 0:00:42]} 28. Rc4 {[%clk 0:00:31]}  Nd6 {[%clk 0:00:35]} 29. Rc3 {[%clk 0:00:30]}  Rb8 {[%clk 0:00:33]} 30. Nd5 {[%clk 0:00:26]}  Ke6 {[%clk 0:00:33]} 31. Rd3 {[%clk 0:00:25]}  e4 {[%clk 0:00:25]} 32. Rd1 {[%clk 0:00:25]}  f5 {[%clk 0:00:19]} 33. Bd4 {[%clk 0:00:22]}  Rhc8 {[%clk 0:00:19]} 34. Nf4+ {[%clk 0:00:22]}  Ke7 {[%clk 0:00:16]} 35. c3 {[%clk 0:00:23]}  Nc4 {[%clk 0:00:14]} 36. O-O {[%clk 0:00:22]}  Rb2 {[%clk 0:00:14]} 37. Ra1 {[%clk 0:00:22]}  Rcb8 {[%clk 0:00:10]} 38. Ra7+ {[%clk 0:00:21]}  R8b7 {[%clk 0:00:11]} 39. Rxb7+ {[%clk 0:00:22]}  Rxb7 {[%clk 0:00:12]} 40. h4 {[%clk 0:00:22]}  Kd6 {[%clk 0:00:11]} 41. Ra1 {[%clk 0:00:22]}  Rb2 {[%clk 0:00:10]} 42. Ra6+ {[%clk 0:00:22]}  Kc7 {[%clk 0:00:10]} 43. Ra7+ {[%clk 0:00:23]}  Kc6 {[%clk 0:00:08]} 44. Rxh7 {[%clk 0:00:23]}  e3 {[%clk 0:00:09]} 45. Re7 {[%clk 0:00:23]}  e2 {[%clk 0:00:09]} 46. Rxe2 {[%clk 0:00:23]}  Rb1+ {[%clk 0:00:09]} 47. Kh2 {[%clk 0:00:24]}  Nd6 {[%clk 0:00:10]} 48. Re6 {[%clk 0:00:24]}  Kd7 {[%clk 0:00:10]} 49. Rxg6 {[%clk 0:00:24]}  Ne4 {[%clk 0:00:11]} 50. Rg7+ {[%clk 0:00:23]}  Kd6 {[%clk 0:00:11]} 51. h5 {[%clk 0:00:24]}  Kc6 {[%clk 0:00:08]} 52. h6 {[%clk 0:00:24]}  Rb8 {[%clk 0:00:08]} 53. h7 {[%clk 0:00:23]}  Nf2 {[%clk 0:00:09]} 54. Ng6 {[%clk 0:00:21]}  Ng4+ {[%clk 0:00:08]} 55. Kg3 {[%clk 0:00:21]}  Nf6 {[%clk 0:00:05]} 56. h8=Q {[%clk 0:00:21]}  Ne4+ {[%clk 0:00:05]} 57. Kf4 {[%clk 0:00:21]}  Rxh8 {[%clk 0:00:03]} 58. Nxh8 {[%clk 0:00:22]}  Nf6 {[%clk 0:00:03]} 59. Rg6 {[%clk 0:00:22]}  Kd5 {[%clk 0:00:04]} 60. Rxf6 {[%clk 0:00:21]} 1-0


[Site "https://www.chess.com"]

[Event "Titled Tuesday Blitz November 08 Early 2022"]
[White "Fernandez Siles, Luis"]
[Black "Aradhya, Garg"]
[WhiteFideId "2209420"]
[BlackFideId "25006746"]
[WhiteElo "2186"]
[BlackElo "2223"]
[Result "0-1"]
[Round "04"]
[TimeControl "180+1"]
[Date "2022.11.09"]
[WhiteClock "0:00:40"]
[BlackClock "0:01:47"]

1. e4 {[%clk 0:03:00]}  e5 {[%clk 0:02:59]} 2. Nf3 {[%clk 0:03:00]}  Nc6 {[%clk 0:02:59]} 3. Bb5 {[%clk 0:02:57]}  a6 {[%clk 0:02:58]} 4. Ba4 {[%clk 0:02:57]}  Nf6 {[%clk 0:02:58]} 5. O-O {[%clk 0:02:56]}  Be7 {[%clk 0:02:58]} 6. Re1 {[%clk 0:02:56]}  b5 {[%clk 0:02:57]} 7. Bb3 {[%clk 0:02:56]}  O-O {[%clk 0:02:57]} 8. d4 {[%clk 0:02:54]}  Nxd4 {[%clk 0:02:55]} 9. Nxe5 {[%clk 0:02:50]}  Nxb3 {[%clk 0:02:54]} 10. axb3 {[%clk 0:02:45]}  Bb7 {[%clk 0:02:54]} 11. f3 {[%clk 0:02:41]}  d5 {[%clk 0:02:35]} 12. exd5 {[%clk 0:02:32]}  Nxd5 {[%clk 0:02:35]} 13. Nc3 {[%clk 0:02:24]}  Re8 {[%clk 0:02:27]} 14. Nxd5 {[%clk 0:02:12]}  Qxd5 {[%clk 0:02:28]} 15. Bf4 {[%clk 0:02:12]}  Bf6 {[%clk 0:02:04]} 16. Qxd5 {[%clk 0:02:09]}  Bxd5 {[%clk 0:02:05]} 17. Nd3 {[%clk 0:01:59]}  c5 {[%clk 0:02:03]} 18. Rxe8+ {[%clk 0:01:57]}  Rxe8 {[%clk 0:02:02]} 19. Rxa6 {[%clk 0:01:58]}  c4 {[%clk 0:02:01]} 20. bxc4 {[%clk 0:01:55]}  bxc4 {[%clk 0:02:00]} 21. Nb4 {[%clk 0:01:37]}  Bd4+ {[%clk 0:01:58]} 22. Kf1 {[%clk 0:01:35]}  c3 {[%clk 0:01:58]} 23. b3 {[%clk 0:01:01]}  Be6 {[%clk 0:01:51]} 24. Nc6 {[%clk 0:00:45]}  Bc5 {[%clk 0:01:48]} 25. b4 {[%clk 0:00:40]}  Bc4# {[%clk 0:01:47]} 0-1


[Site "https://www.chess.com"]

[Event "Titled Tuesday Blitz November 08 Early 2022"]
[White "Fiedorek, Michal"]
[Black "Sihlongonyane, Sikhanyiso"]
[WhiteFideId "1199528"]
[BlackFideId "20700784"]
[WhiteElo "2201"]
[BlackElo "1574"]
[Result "1-0"]
[Round "04"]
[TimeControl "180+1"]
[Date "2022.11.09"]
[WhiteClock "0:01:06"]
[BlackClock "0:00:04"]

1. e4 {[%clk 0:03:00]}  c5 {[%clk 0:02:58]} 2. Nf3 {[%clk 0:03:00]}  d6 {[%clk 0:02:57]} 3. d4 {[%clk 0:03:00]}  cxd4 {[%clk 0:02:58]} 4. Nxd4 {[%clk 0:03:00]}  Nf6 {[%clk 0:02:59]} 5. Nc3 {[%clk 0:03:00]}  a6 {[%clk 0:02:59]} 6. Bg5 {[%clk 0:02:57]}  e5 {[%clk 0:02:58]} 7. Nb3 {[%clk 0:02:51]}  Be6 {[%clk 0:02:58]} 8. Qd2 {[%clk 0:02:47]}  Nbd7 {[%clk 0:02:57]} 9. O-O-O {[%clk 0:02:45]}  Be7 {[%clk 0:02:56]} 10. f4 {[%clk 0:02:38]}  b5 {[%clk 0:02:48]} 11. Bxf6 {[%clk 0:02:29]}  Nxf6 {[%clk 0:02:36]} 12. f5 {[%clk 0:02:23]}  Bc4 {[%clk 0:02:36]} 13. Kb1 {[%clk 0:02:16]}  Bxf1 {[%clk 0:02:16]} 14. Rhxf1 {[%clk 0:02:14]}  b4 {[%clk 0:02:16]} 15. Nd5 {[%clk 0:02:13]}  Nxe4 {[%clk 0:02:15]} 16. Qxb4 {[%clk 0:02:13]}  Nf6 {[%clk 0:01:33]} 17. Nxf6+ {[%clk 0:02:12]}  gxf6 {[%clk 0:01:33]} 18. Rd5 {[%clk 0:01:57]}  Rb8 {[%clk 0:01:18]} 19. Qa4+ {[%clk 0:01:47]}  Kf8 {[%clk 0:01:14]} 20. Qxa6 {[%clk 0:01:35]}  Rg8 {[%clk 0:01:03]} 21. g3 {[%clk 0:01:29]}  h5 {[%clk 0:00:41]} 22. Qe2 {[%clk 0:01:24]}  h4 {[%clk 0:00:39]} 23. gxh4 {[%clk 0:01:21]}  Qc7 {[%clk 0:00:30]} 24. h5 {[%clk 0:01:19]}  Qb7 {[%clk 0:00:28]} 25. Rfd1 {[%clk 0:01:17]}  Rg5 {[%clk 0:00:07]} 26. h6 {[%clk 0:01:12]}  Kg8 {[%clk 0:00:05]} 27. h4 {[%clk 0:01:07]}  Rxf5 {[%clk 0:00:04]} 28. Qg4+ {[%clk 0:01:06]} 1-0


[Site "https://www.chess.com"]

[Event "Titled Tuesday Blitz November 08 Early 2022"]
[White "Firat, Burak"]
[Black "Liang, Awonder"]
[WhiteFideId "6305881"]
[BlackFideId "2056437"]
[WhiteElo "2626"]
[BlackElo "2995"]
[Result "0-1"]
[Round "04"]
[TimeControl "180+1"]
[Date "2022.11.09"]
[WhiteClock "0:00:12"]
[BlackClock "0:00:52"]

1. Nf3 {[%clk 0:02:58]}  a5 {[%clk 0:02:58]} 2. d4 {[%clk 0:02:57]}  a4 {[%clk 0:02:58]} 3. c4 {[%clk 0:02:57]}  e6 {[%clk 0:02:57]} 4. e4 {[%clk 0:02:56]}  d5 {[%clk 0:02:57]} 5. exd5 {[%clk 0:02:54]}  exd5 {[%clk 0:02:58]} 6. Nc3 {[%clk 0:02:55]}  Bb4 {[%clk 0:02:55]} 7. Bd3 {[%clk 0:02:44]}  Qe7+ {[%clk 0:02:55]} 8. Be3 {[%clk 0:02:35]}  a3 {[%clk 0:02:54]} 9. Qc2 {[%clk 0:02:19]}  dxc4 {[%clk 0:02:47]} 10. Bxc4 {[%clk 0:02:16]}  Nf6 {[%clk 0:01:47]} 11. O-O {[%clk 0:02:14]}  O-O {[%clk 0:01:42]} 12. Bg5 {[%clk 0:02:06]}  axb2 {[%clk 0:01:38]} 13. Qxb2 {[%clk 0:02:04]}  Bxc3 {[%clk 0:01:28]} 14. Qxc3 {[%clk 0:02:04]}  h6 {[%clk 0:01:28]} 15. Bh4 {[%clk 0:02:00]}  c6 {[%clk 0:01:12]} 16. Rfe1 {[%clk 0:01:52]}  Be6 {[%clk 0:01:11]} 17. Bxe6 {[%clk 0:01:45]}  fxe6 {[%clk 0:01:12]} 18. Ne5 {[%clk 0:01:45]}  Re8 {[%clk 0:01:12]} 19. a4 {[%clk 0:01:38]}  Nbd7 {[%clk 0:01:12]} 20. Rab1 {[%clk 0:01:35]}  Nxe5 {[%clk 0:01:06]} 21. dxe5 {[%clk 0:01:13]}  Nd5 {[%clk 0:01:06]} 22. Bxe7 {[%clk 0:01:04]}  Nxc3 {[%clk 0:01:06]} 23. Rxb7 {[%clk 0:01:03]}  Rxa4 {[%clk 0:01:07]} 24. f3 {[%clk 0:00:51]}  Rea8 {[%clk 0:01:00]} 25. h4 {[%clk 0:00:45]}  R8a7 {[%clk 0:01:00]} 26. Rb8+ {[%clk 0:00:39]}  Kh7 {[%clk 0:01:00]} 27. Re8 {[%clk 0:00:37]}  Ra2 {[%clk 0:00:53]} 28. Bc5 {[%clk 0:00:30]}  Rb7 {[%clk 0:00:53]} 29. Bd4 {[%clk 0:00:29]}  Ne2+ {[%clk 0:00:52]} 30. Rxe2 {[%clk 0:00:27]}  Rxe2 {[%clk 0:00:53]} 31. Rxe6 {[%clk 0:00:27]}  Rb4 {[%clk 0:00:53]} 32. Rd6 {[%clk 0:00:20]}  Rc4 {[%clk 0:00:53]} 33. e6 {[%clk 0:00:18]}  c5 {[%clk 0:00:53]} 34. e7 {[%clk 0:00:12]}  Rxd4 {[%clk 0:00:52]} 0-1


[Site "https://www.chess.com"]

[Event "Titled Tuesday Blitz November 08 Early 2022"]
[White "Firouzja, Alireza"]
[Black "Rakhmanov, Aleksandr"]
[WhiteFideId "12573981"]
[BlackFideId "4173708"]
[WhiteElo "2903"]
[BlackElo "2530"]
[Result "1-0"]
[Round "04"]
[TimeControl "180+1"]
[Date "2022.11.08"]
[WhiteClock "0:00:15"]
[BlackClock "0:00:01"]

1. d4 {[%clk 0:03:00]}  Nf6 {[%clk 0:02:59]} 2. Bg5 {[%clk 0:03:01]}  Ne4 {[%clk 0:02:58]} 3. Bf4 {[%clk 0:03:01]}  d6 {[%clk 0:02:59]} 4. f3 {[%clk 0:02:54]}  Nf6 {[%clk 0:02:59]} 5. e4 {[%clk 0:02:54]}  e5 {[%clk 0:03:00]} 6. dxe5 {[%clk 0:02:19]}  Nh5 {[%clk 0:02:56]} 7. Be3 {[%clk 0:02:19]}  dxe5 {[%clk 0:02:57]} 8. Qxd8+ {[%clk 0:02:18]}  Kxd8 {[%clk 0:02:58]} 9. Nc3 {[%clk 0:02:19]}  c6 {[%clk 0:02:57]} 10. O-O-O+ {[%clk 0:02:19]}  Ke8 {[%clk 0:02:57]} 11. Bc4 {[%clk 0:02:12]}  Nd7 {[%clk 0:02:56]} 12. Kb1 {[%clk 0:02:08]}  b5 {[%clk 0:02:47]} 13. Bb3 {[%clk 0:02:08]}  a5 {[%clk 0:02:47]} 14. a3 {[%clk 0:01:50]}  Nc5 {[%clk 0:02:34]} 15. Bxc5 {[%clk 0:01:49]}  Bxc5 {[%clk 0:02:34]} 16. Nge2 {[%clk 0:01:50]}  Ke7 {[%clk 0:02:27]} 17. g4 {[%clk 0:01:45]}  Nf6 {[%clk 0:02:19]} 18. Ng3 {[%clk 0:01:46]}  g6 {[%clk 0:02:19]} 19. Rhf1 {[%clk 0:01:36]}  Ra7 {[%clk 0:01:58]} 20. g5 {[%clk 0:01:35]}  Nd7 {[%clk 0:01:50]} 21. a4 {[%clk 0:00:53]}  b4 {[%clk 0:01:42]} 22. Nce2 {[%clk 0:00:53]}  Ba6 {[%clk 0:01:35]} 23. h4 {[%clk 0:00:41]}  h6 {[%clk 0:01:32]} 24. gxh6 {[%clk 0:00:37]}  Rxh6 {[%clk 0:01:32]} 25. h5 {[%clk 0:00:38]}  Bxe2 {[%clk 0:00:38]} 26. Nxe2 {[%clk 0:00:30]}  Rxh5 {[%clk 0:00:34]} 27. f4 {[%clk 0:00:30]}  Nf6 {[%clk 0:00:19]} 28. Ng3 {[%clk 0:00:27]}  exf4 {[%clk 0:00:15]} 29. Rxf4 {[%clk 0:00:26]}  Rg5 {[%clk 0:00:07]} 30. e5 {[%clk 0:00:24]}  Rxe5 {[%clk 0:00:05]} 31. Rdf1 {[%clk 0:00:25]}  Nd7 {[%clk 0:00:06]} 32. Rxf7+ {[%clk 0:00:25]}  Kd8 {[%clk 0:00:05]} 33. Rd1 {[%clk 0:00:23]}  Kc8 {[%clk 0:00:04]} 34. Rg7 {[%clk 0:00:22]}  Re7 {[%clk 0:00:03]} 35. Rxg6 {[%clk 0:00:22]}  Kc7 {[%clk 0:00:03]} 36. Nf5 {[%clk 0:00:21]}  Rh7 {[%clk 0:00:03]} 37. Ng7 {[%clk 0:00:17]}  Kb6 {[%clk 0:00:01]} 38. Ne6 {[%clk 0:00:15]}  Ne5 {[%clk 0:00:01]} 39. Rg5 {[%clk 0:00:15]} 1-0


[Site "https://www.chess.com"]

[Event "Titled Tuesday Blitz November 08 Early 2022"]
[White "Gabrielian, Artur"]
[Black "Tari, Aryan"]
[WhiteFideId "4131002"]
[BlackFideId "1510045"]
[WhiteElo "2432"]
[BlackElo "2612"]
[Result "1/2-1/2"]
[Round "04"]
[TimeControl "180+1"]
[Date "2022.11.08"]
[WhiteClock "0:00:09"]
[BlackClock "0:00:03"]

1. e4 {[%clk 0:03:00]}  c6 {[%clk 0:02:57]} 2. d4 {[%clk 0:03:00]}  d5 {[%clk 0:02:58]} 3. e5 {[%clk 0:03:00]}  Bf5 {[%clk 0:02:57]} 4. h4 {[%clk 0:03:00]}  c5 {[%clk 0:02:57]} 5. dxc5 {[%clk 0:02:57]}  Nc6 {[%clk 0:02:57]} 6. Nf3 {[%clk 0:02:53]}  e6 {[%clk 0:02:57]} 7. Be3 {[%clk 0:02:53]}  Bg4 {[%clk 0:02:49]} 8. Nbd2 {[%clk 0:02:52]}  Nh6 {[%clk 0:02:48]} 9. c3 {[%clk 0:02:49]}  Nf5 {[%clk 0:02:47]} 10. Qa4 {[%clk 0:02:34]}  Nxe3 {[%clk 0:02:41]} 11. fxe3 {[%clk 0:02:34]}  Bxf3 {[%clk 0:02:39]} 12. Nxf3 {[%clk 0:02:29]}  Bxc5 {[%clk 0:02:39]} 13. e4 {[%clk 0:02:15]}  Qb6 {[%clk 0:02:32]} 14. O-O-O {[%clk 0:02:14]}  O-O {[%clk 0:02:13]} 15. exd5 {[%clk 0:02:13]}  exd5 {[%clk 0:02:14]} 16. Bd3 {[%clk 0:02:13]}  h6 {[%clk 0:01:59]} 17. Kb1 {[%clk 0:02:07]}  d4 {[%clk 0:01:52]} 18. cxd4 {[%clk 0:01:45]}  Nxd4 {[%clk 0:01:52]} 19. Nxd4 {[%clk 0:01:15]}  Bxd4 {[%clk 0:01:53]} 20. Bh7+ {[%clk 0:01:15]}  Kxh7 {[%clk 0:01:53]} 21. Qxd4 {[%clk 0:01:16]}  Qg6+ {[%clk 0:01:48]} 22. Qd3 {[%clk 0:01:14]}  Rad8 {[%clk 0:01:46]} 23. Qxg6+ {[%clk 0:01:13]}  Kxg6 {[%clk 0:01:47]} 24. g4 {[%clk 0:01:12]}  h5 {[%clk 0:01:45]} 25. Rdg1 {[%clk 0:01:10]}  hxg4 {[%clk 0:01:19]} 26. Rxg4+ {[%clk 0:01:09]}  Kh6 {[%clk 0:01:20]} 27. Rf1 {[%clk 0:00:47]}  g6 {[%clk 0:01:16]} 28. Rgf4 {[%clk 0:00:36]}  Kg7 {[%clk 0:01:16]} 29. h5 {[%clk 0:00:35]}  Rde8 {[%clk 0:01:02]} 30. h6+ {[%clk 0:00:22]}  Kg8 {[%clk 0:01:02]} 31. h7+ {[%clk 0:00:18]}  Kg7 {[%clk 0:00:54]} 32. h8=Q+ {[%clk 0:00:15]}  Kxh8 {[%clk 0:00:53]} 33. Rxf7 {[%clk 0:00:15]}  Kg8 {[%clk 0:00:51]} 34. R7f6 {[%clk 0:00:12]}  Rxf6 {[%clk 0:00:49]} 35. Rxf6 {[%clk 0:00:11]}  Kg7 {[%clk 0:00:49]} 36. Rd6 {[%clk 0:00:11]}  Kf7 {[%clk 0:00:47]} 37. Rf6+ {[%clk 0:00:11]}  Kg7 {[%clk 0:00:47]} 38. Rd6 {[%clk 0:00:11]}  Rxe5 {[%clk 0:00:42]} 39. Rd7+ {[%clk 0:00:11]}  Kf6 {[%clk 0:00:43]} 40. Rxb7 {[%clk 0:00:11]}  g5 {[%clk 0:00:42]} 41. Rxa7 {[%clk 0:00:11]}  g4 {[%clk 0:00:42]} 42. Ra8 {[%clk 0:00:11]}  g3 {[%clk 0:00:39]} 43. Rf8+ {[%clk 0:00:11]}  Kg7 {[%clk 0:00:39]} 44. Rf1 {[%clk 0:00:11]}  Re2 {[%clk 0:00:36]} 45. a4 {[%clk 0:00:09]}  Kg6 {[%clk 0:00:35]} 46. Rf3 {[%clk 0:00:09]}  g2 {[%clk 0:00:33]} 47. Rg3+ {[%clk 0:00:10]}  Kf5 {[%clk 0:00:33]} 48. Ka2 {[%clk 0:00:10]}  Kf4 {[%clk 0:00:33]} 49. Rg8 {[%clk 0:00:10]}  Kf3 {[%clk 0:00:33]} 50. Ka3 {[%clk 0:00:10]}  Re3+ {[%clk 0:00:33]} 51. b3 {[%clk 0:00:10]}  Re4 {[%clk 0:00:33]} 52. Rxg2 {[%clk 0:00:07]}  Kxg2 {[%clk 0:00:34]} 53. a5 {[%clk 0:00:08]}  Kg3 {[%clk 0:00:32]} 54. b4 {[%clk 0:00:08]}  Kf4 {[%clk 0:00:32]} 55. a6 {[%clk 0:00:08]}  Re1 {[%clk 0:00:31]} 56. Ka4 {[%clk 0:00:08]}  Ke5 {[%clk 0:00:31]} 57. Kb5 {[%clk 0:00:09]}  Kd6 {[%clk 0:00:31]} 58. Kb6 {[%clk 0:00:09]}  Kd7 {[%clk 0:00:25]} 59. Kb7 {[%clk 0:00:09]}  Rb1 {[%clk 0:00:24]} 60. a7 {[%clk 0:00:09]}  Rxb4+ {[%clk 0:00:24]} 61. Ka8 {[%clk 0:00:10]}  Rc4 {[%clk 0:00:10]} 62. Kb7 {[%clk 0:00:10]}  Rb4+ {[%clk 0:00:07]} 63. Ka8 {[%clk 0:00:10]}  Ra4 {[%clk 0:00:03]} 64. Kb7 {[%clk 0:00:10]}  Ra1 {[%clk 0:00:02]} 65. a8=Q {[%clk 0:00:09]}  Rb1+ {[%clk 0:00:03]} 66. Ka6 {[%clk 0:00:09]}  Ra1+ {[%clk 0:00:03]} 67. Kb7 {[%clk 0:00:09]}  Rb1+ {[%clk 0:00:03]} 68. Ka6 {[%clk 0:00:09]}  Ra1+ {[%clk 0:00:03]} 69. Kb7 {[%clk 0:00:09]} 1/2-1/2


[Site "https://www.chess.com"]